bitfinex-derivatives/quotes_ETHF0:USTF0_20250612
["timestamp","ask_amount","ask_price","bid_price","bid_amount"]
[1749732004858,1.3312172,2744.9,2744.8,0.72852]
[1749732005058,0.0620172,2744.9,2744.7,3.21144612]
[1749732006358,0.72852,2744.8,2744.7,3.21144612]
[1749732006562,6.99772,2744.8,2744.7,0.00364612]
[1749732006755,0.7286,2744.5,2744.4,3.2078]
[1749732006960,0.7286,2744.5,2744.0,7.163]
[1749732006961,0.7287,2744.1,2744.0,7.163]
[1749732007155,1.3232,2744.4,2744.0,7.163]
[1749732007356,2.5799,2744.8,2744.1,3.2078]
[1749732007661,0.73403156,2744.7,2744.4,3.93641]
[1749732007856,0.73403156,2744.7,2744.5,24.783]
[1749732008058,0.72857,2744.6,2744.5,24.783]
[1749732008259,0.7286,2744.5,2744.4,3.2078]
[1749732008460,2.0518,2744.5,2744.4,3.2078]
[1749732008661,7.0518,2744.5,2744.4,3.2078]
[1749732009566,9.531,2744.5,2743.8,3.2078]
[1749732009858,0.72875,2743.9,2743.8,27.9478]
[1749732010060,0.72875,2743.9,2743.7,7.163]
[1749732010061,0.72878,2743.8,2743.7,7.163]
[1749732010263,0.72883,2743.6,2743.5,3.2078]
[1749732010457,1.3097,2743.7,2743.5,3.2078]
[1749732010860,5.02956,2744.2,2743.5,3.2078]
[1749732011060,1.3097,2744.1,2743.5,27.9208]
[1749732011376,0.72881,2743.7,2743.5,28.64964]
[1749732011568,0.72883,2743.6,2743.5,27.9208]
[1749732011860,2.03842,2744.1,2743.5,27.9208]
[1749732012072,1.3097,2744.1,2743.5,29.1908]
[1749732012261,0.72877,2743.9,2743.5,29.1908]
[1749732012567,1.3097,2744.1,2743.5,27.9208]
[1749732012870,0.72883,2743.6,2743.5,10.3708]
[1749732013070,0.72883,2743.6,2743.5,35.0508]
[1749732013373,0.72883,2743.6,2743.5,27.8728]
[1749732013672,0.72886,2743.5,2743.4,7.163]
[1749732014168,1.16576,2743.5,2743.4,7.163]
[1749732015473,0.72892,2743.3,2743.2,3.2078]
[1749732017471,0.72897,2743.1,2743.0,31.784]
[1749732018168,0.72897,2743.1,2743.0,7.164]
[1749732018867,0.72903,2742.9,2742.8,3.2078]
[1749732019073,0.72903,2742.9,2742.8,27.7898]
[1749732019963,0.72903,2742.9,2742.8,3.2078]
[1749732020168,1.82781156,2743.3,2742.8,3.93683]
[1749732020367,0.72903,2742.9,2742.8,3.93683]
[1749732020672,0.72903,2742.9,2742.8,4.25763219]
[1749732020967,0.72903,2742.9,2742.8,3.93683]
[1749732021367,0.72901,2743.0,2742.9,0.729]
[1749732021572,0.72903,2742.9,2742.8,3.93684]
[1749732022072,0.72899,2743.1,2743.0,0.72898]
[1749732022275,0.72902,2743.0,2742.9,0.72902]
[1749732022871,0.72903,2742.9,2742.8,3.93683]
[1749732023070,0.72896,2743.2,2743.1,0.72895]
[1749732023370,0.73442156,2743.3,2743.2,0.72895]
[1749732024361,0.72895,2743.2,2743.1,27.6898]
[1749732024771,0.72895,2743.2,2743.1,28.41877]
[1749732025166,0.73441156,2743.3,2743.2,0.72895]
[1749732025366,0.72895,2743.2,2743.1,28.41875]
[1749732026379,0.73441156,2743.3,2743.2,0.72895]
[1749732026579,0.72895,2743.2,2743.1,28.41876]
[1749732026873,0.72895,2743.2,2743.1,27.6898]
[1749732027073,0.72895,2743.2,2743.1,28.41877]
[1749732027770,0.72895,2743.2,2743.1,27.6898]
[1749732027969,0.72895,2743.2,2743.1,3.2078]
[1749732028171,0.72895,2743.2,2743.1,27.5998]
[1749732028371,0.72895,2743.2,2743.1,3.2078]
[1749732028570,0.72903,2742.9,2742.8,10.3728]
[1749732028775,0.72903,2742.9,2742.8,34.7468]
[1749732028969,0.72903,2742.9,2742.8,35.47585]
[1749732029470,0.72903,2742.9,2742.8,34.7468]
[1749732030775,0.72903,2742.9,2742.8,34.7418]
[1749732030974,0.72903,2742.9,2742.8,10.3728]
[1749732031174,0.72903,2742.9,2742.8,34.7198]
[1749732031369,0.72912,2742.7,2742.4,29.035]
[1749732031575,1.82257,2743.0,2742.5,25.0641]
[1749732031576,0.72913,2742.6,2742.5,25.0641]
[1749732033272,0.72916,2742.4,2742.3,3.2078]
[1749732034477,1.16666,2742.4,2742.3,3.2078]
[1749732035176,0.72921,2742.2,2742.1,31.267]
[1749732035372,0.72921,2742.2,2742.1,6.997]
[1749732035678,0.72921,2742.2,2741.9,3.2078]
[1749732035679,0.72927,2742.0,2741.9,27.4718]
[1749732036375,0.72927,2742.0,2741.9,3.2078]
[1749732038379,0.72932,2741.8,2741.7,6.997]
[1749732038573,0.72932,2741.8,2741.5,26.5619]
[1749732038574,0.72937,2741.6,2741.5,3.2078]
[1749732038880,0.72943,2741.4,2741.3,6.997]
[1749732039080,0.72943,2741.4,2741.3,31.196]
[1749732039573,0.72943,2741.4,2741.3,31.92545]
[1749732040267,0.72943,2741.4,2741.3,31.196]
[1749732040467,0.72943,2741.4,2741.3,6.997]
[1749732040675,0.72943,2741.4,2741.3,31.171]
[1749732041072,0.72943,2741.4,2741.3,6.997]
[1749732041271,0.72943,2741.4,2741.3,31.16]
[1749732041969,0.72948,2741.2,2741.1,3.2078]
[1749732042381,0.72948,2741.2,2741.1,3.93731]
[1749732042575,0.72948,2741.2,2741.1,5.31111]
[1749732042773,0.72948,2741.2,2741.1,4.5816]
[1749732042976,0.72948,2741.2,2741.1,5.31111]
[1749732043180,0.72948,2741.2,2741.1,3.2078]
[1749732043780,0.72948,2741.2,2741.1,27.3248]
[1749732044677,0.72948,2741.2,2741.1,29.41301]
[1749732044878,0.72947,2741.3,2741.2,0.72944]
[1749732045074,0.72948,2741.2,2741.1,29.41301]
[1749732046282,0.72948,2741.3,2741.2,0.72945]
[1749732047079,1.82345,2741.6,2741.2,0.72945]
[1749732047285,0.72945,2741.4,2741.3,26.09302]
[1749732047687,0.72939,2741.7,2741.6,0.72935]
[1749732047888,0.72939,2741.7,2741.6,24.77935]
[1749732048188,0.72939,2741.7,2741.2,1.2727]
[1749732048189,3.2078,2741.7,2740.2,7.0]
[1749732048381,0.72969,2740.4,2740.3,0.7297]
[1749732048984,5.03162,2741.1,2740.2,31.045]
[1749732049190,5.03162,2741.1,2740.7,3.2078]
[1749732049191,0.72959,2740.8,2740.7,3.2078]
[1749732049385,0.72959,2740.8,2740.7,3.93741]
[1749732049683,0.72959,2740.8,2740.7,27.2358]
[1749732049883,0.72959,2740.8,2740.7,24.028]
[1749732050084,1.82397,2740.8,2740.4,3.2078]
[1749732050285,0.72967,2740.5,2740.4,7.0]
[1749732050486,0.72967,2740.5,2740.4,31.007]
[1749732051886,0.72967,2740.5,2740.4,34.2148]
[1749732053189,0.72967,2740.6,2740.4,34.2148]
[1749732053398,0.72967,2740.5,2740.4,34.94448]
[1749732055596,0.72967,2740.5,2740.4,34.2148]
[1749732056403,0.72967,2740.5,2740.4,34.94449]
[1749732056994,0.72967,2740.5,2740.4,34.2148]
[1749732057193,0.72967,2740.5,2740.4,34.94449]
[1749732057491,0.72967,2740.5,2740.4,34.2148]
[1749732057893,0.72967,2740.5,2740.4,34.94449]
[1749732058499,0.72967,2740.5,2740.4,34.2148]
[1749732058689,1.16743,2740.7,2740.4,34.94449]
[1749732058893,1.16741,2740.7,2740.6,0.72964]
[1749732059094,1.16741,2740.7,2740.6,24.60264]
[1749732059501,0.4378,2740.7,2740.6,24.60264]
[1749732059893,1.16741,2740.7,2740.6,23.873]
[1749732060393,1.16741,2740.7,2740.6,24.60264]
[1749732061387,0.72964,2740.6,2740.5,1.2836]
[1749732061591,0.72964,2740.6,2740.5,25.1146]
[1749732061990,0.72967,2740.5,2740.4,0.25809]
[1749732062190,0.72993,2739.5,2738.9,8.98166782]
[1749732062497,0.00547156,2739.7,2739.0,40.8]
[1749732062689,0.00547156,2739.7,2739.2,0.73001]
[1749732062994,0.73001,2739.3,2739.2,6.72]
[1749732063198,0.00547156,2739.7,2739.2,6.72]
[1749732063498,0.72996,2739.4,2739.3,0.72997]
[1749732063695,0.72996,2739.4,2739.3,1.3764]
[1749732064102,0.72996,2739.4,2739.3,32.65039]
[1749732064298,0.72996,2739.4,2739.3,32.65037]
[1749732064501,0.72996,2739.4,2739.3,31.9204]
[1749732064891,0.72994,2739.5,2739.3,31.9204]
[1749732065098,0.00547156,2739.7,2739.3,31.9204]
[1749732065297,0.0620172,2739.4,2739.3,32.65037]
[1749732067305,0.7919772,2739.4,2739.3,32.65037]
[1749732067499,0.7919772,2739.4,2739.3,1.3764]
[1749732067699,0.0620172,2739.4,2739.3,30.547]
[1749732068204,0.7919772,2739.4,2739.3,30.547]
[1749732068899,0.7919772,2739.4,2739.3,31.27699]
[1749732069406,0.0620172,2739.4,2739.3,31.27699]
[1749732069602,0.0620172,2739.4,2739.3,0.72999]
[1749732069796,0.7919772,2739.4,2739.3,31.27699]
[1749732070106,0.0620172,2739.4,2739.3,31.27899]
[1749732071208,0.0620172,2739.4,2739.3,34.48679]
[1749732071406,0.00547156,2739.7,2739.6,0.72991]
[1749732071599,0.00547156,2739.7,2739.6,24.55591]
[1749732072703,0.00547156,2739.7,2739.6,31.27791]
[1749732073607,0.44347156,2739.7,2739.6,31.27791]
[1749732073910,1.17335156,2739.7,2739.6,31.27791]
[1749732074102,1.17335156,2739.7,2739.6,30.548]
[1749732074301,0.44347156,2739.7,2739.6,31.27791]
[1749732075308,1.17335156,2739.7,2739.6,31.27791]
[1749732075602,0.44347156,2739.7,2739.6,31.27791]
[1749732075807,0.44347156,2739.7,2739.6,30.548]
[1749732075808,1.17335156,2739.7,2739.6,30.548]
[1749732076008,1.17335156,2739.7,2739.6,31.27791]
[1749732076508,1.17335156,2739.7,2739.4,0.72994]
[1749732076509,0.72993,2739.5,2739.4,0.72994]
[1749732076806,0.72993,2739.5,2739.4,31.27694]
[1749732077909,0.72993,2739.6,2739.5,0.72991]
[1749732078106,1.17338156,2739.7,2739.6,0.72991]
[1749732078308,1.17338156,2739.7,2739.6,23.825]
[1749732078605,0.72991,2739.6,2739.5,0.72992]
[1749732078807,0.72991,2739.6,2739.5,24.55492]
[1749732079108,0.72993,2739.5,2739.4,6.722]
[1749732079309,4.45949,2739.6,2739.2,3.2078]
[1749732079607,0.72993,2739.5,2739.4,30.548]
[1749732079807,0.72993,2739.5,2739.4,31.27796]
[1749732080003,0.72993,2739.5,2739.4,30.548]
[1749732080598,2.11623,2739.5,2739.4,30.548]
[1749732080804,1.3642,2739.6,2739.5,0.72993]
[1749732081206,2.09411,2739.6,2739.5,0.72993]
[1749732081609,0.44347156,2739.7,2739.6,0.72991]
[1749732081808,0.44347156,2739.7,2739.6,24.55491]
[1749732082508,1.17335156,2739.7,2739.6,24.55491]
[1749732083513,0.44347156,2739.7,2739.6,24.55491]
[1749732084201,1.17335156,2739.7,2739.6,24.55491]
[1749732085009,0.44347156,2739.7,2739.6,24.55491]
[1749732089119,3.2078,2740.2,2740.1,0.72977]
[1749732089310,3.2078,2740.2,2740.1,31.22077]
[1749732089912,3.2078,2740.5,2740.2,0.72975]
[1749732090105,3.2078,2740.5,2740.4,0.72969]
[1749732090416,0.00547156,2740.6,2740.5,0.72967]
[1749732090617,0.00547156,2740.6,2740.5,31.21967]
[1749732090913,0.00547156,2740.6,2740.5,34.42747]
[1749732092113,3.2078,2740.9,2740.8,0.72959]
[1749732092618,3.8933,2741.4,2740.6,1.82408]
[1749732092619,3.2078,2741.2,2740.6,1.82408]
[1749732092822,3.2078,2741.2,2741.0,0.72952]
[1749732093117,3.9373,2741.2,2741.1,24.54651]
[1749732093419,3.2078,2741.2,2741.1,24.54651]
[1749732094021,2.62227156,2741.4,2741.3,0.72945]
[1749732094218,0.00547156,2741.4,2741.3,31.21145]
[1749732094417,3.2078,2741.8,2741.7,0.72935]
[1749732094610,3.93712,2741.8,2741.7,30.482]
[1749732094815,3.2078,2741.8,2741.7,31.21135]
[1749732095017,2.0777,2741.9,2741.7,31.21135]
[1749732095218,1.3484,2741.9,2741.8,0.72932]
[1749732095720,2.07769,2741.9,2741.7,31.21133]
[1749732095926,1.3484,2741.9,2741.8,0.72932]
[1749732096519,0.00547156,2742.1,2742.0,0.72927]
[1749732096715,0.00547156,2742.1,2742.0,24.54127]
[1749732098217,3.2078,2742.5,2742.2,0.72919]
[1749732098418,0.72917,2742.4,2742.3,30.474]
[1749732098718,1.275,2742.4,2742.3,31.20319]
[1749732099123,3.2078,2742.5,2742.4,0.72916]
[1749732099421,1.34777156,2742.6,2742.5,0.72913]
[1749732099627,0.00547156,2742.6,2742.5,24.53413]
[1749732100417,1.3423,2743.1,2743.0,0.729]
[1749732100613,1.3423,2743.1,2743.0,31.196]
[1749732100818,2.07127,2743.1,2743.0,30.467]
[1749732101026,1.3423,2743.1,2742.8,0.72903]
[1749732101224,1.3423,2743.1,2743.0,0.729]
[1749732101429,2.07127,2743.1,2742.9,30.467]
[1749732101626,2.07127,2743.1,2742.9,31.19602]
[1749732101922,0.729,2743.0,2742.9,30.467]
[1749732102324,1.3423,2743.1,2743.0,0.729]
[1749732102719,0.00547156,2743.3,2743.2,0.72895]
[1749732102921,0.00547156,2743.3,2743.2,24.52195]
[1749732103327,0.72883,2743.7,2743.6,0.72884]
[1749732103529,0.72881,2743.7,2743.6,30.458]
[1749732104128,3.05034,2743.7,2743.0,44.0078]
[1749732104327,0.72897,2743.1,2743.0,47.465]
[1749732104627,0.72911,2742.6,2742.5,6.665]
[1749732104920,0.72911,2742.6,2742.5,30.457]
[1749732105320,0.72911,2742.6,2742.5,30.456]
[1749732105521,3.2078,2742.8,2742.7,0.72908]
[1749732105825,2.6115,2743.0,2742.9,0.72903]
[1749732106023,2.6115,2743.0,2742.9,31.18103]
[1749732106324,2.6115,2743.0,2742.9,30.452]
[1749732106927,2.6115,2743.0,2742.9,31.18103]
[1749732107226,3.2078,2743.1,2743.0,0.729]
[1749732108528,3.93677,2743.1,2743.0,0.729]
[1749732108721,3.2078,2743.1,2742.9,30.452]
[1749732108935,0.729,2743.0,2742.9,0.72902]
[1749732109118,3.2078,2743.1,2742.9,30.445]
[1749732109330,0.729,2743.0,2742.9,30.445]
[1749732109716,0.729,2743.0,2742.9,23.782]
[1749732109923,2.01339,2743.1,2743.0,0.729]
[1749732110229,2.01339,2743.1,2743.0,30.445]
[1749732110230,1.2844,2743.1,2743.0,30.445]
[1749732110423,5.22117,2743.1,2743.0,30.445]
[1749732111922,0.72905,2742.8,2742.7,0.72908]
[1749732112230,0.72904,2742.9,2742.8,0.72903]
[1749732112930,0.72905,2742.8,2742.7,31.17106]
[1749732113130,0.72904,2742.9,2742.8,0.72903]
[1749732113333,0.72902,2743.0,2742.9,0.72901]
[1749732113531,5.22119,2743.1,2743.0,0.729]
[1749732113732,3.93677,2743.1,2743.0,0.729]
[1749732114431,3.93679,2743.1,2743.0,0.729]
[1749732114633,3.2078,2743.1,2743.0,0.729]
[1749732114835,3.93677,2743.1,2743.0,0.729]
[1749732115332,3.2078,2743.1,2743.0,0.729]
[1749732115628,1.82228,2743.4,2742.9,23.778]
[1749732115833,0.72899,2743.1,2743.0,0.72897]
[1749732116333,0.72897,2743.2,2743.1,0.72895]
[1749732116533,0.72897,2743.2,2743.1,31.16695]
[1749732116730,1.2494,2743.4,2743.1,30.438]
[1749732116931,0.72895,2743.3,2743.2,0.72892]
[1749732117130,0.72895,2743.2,2743.1,31.16695]
[1749732117429,3.2078,2743.5,2743.1,30.438]
[1749732117631,3.2078,2743.5,2743.2,0.72893]
[1749732117632,0.72895,2743.3,2743.2,0.72893]
[1749732117937,0.72895,2743.2,2743.1,6.663]
[1749732118236,6.13045,2743.2,2743.1,30.435]
[1749732118431,0.72908,2742.7,2742.6,3.2078]
[1749732118628,0.72908,2742.8,2742.7,0.72905]
[1749732118835,0.72902,2743.0,2742.9,0.729]
[1749732119143,0.72902,2743.0,2742.9,24.5]
[1749732119527,0.9657,2743.1,2743.0,0.729]
[1749732119738,0.9769,2743.2,2743.1,0.72897]
[1749732120033,1.82224,2743.4,2743.1,0.72896]
[1749732120329,3.2078,2743.2,2742.4,1.82289]
[1749732120533,0.72902,2743.0,2742.9,0.729]
[1749732120734,0.72902,2743.0,2742.9,31.147]
[1749732121335,0.72908,2742.8,2742.6,3.2078]
[1749732121537,0.72908,2742.8,2742.7,30.418]
[1749732121844,0.72904,2742.9,2742.8,0.72903]
[1749732122037,0.729,2743.1,2743.0,0.72898]
[1749732122338,1.70501,2743.4,2743.3,0.72892]
[1749732122639,1.70501,2743.4,2743.3,31.14592]
[1749732122837,0.9761,2743.4,2743.3,31.14592]
[1749732123242,3.2078,2743.5,2743.4,0.72889]
[1749732123742,3.2078,2743.5,2743.4,1.94439]
[1749732124145,3.2078,2744.6,2743.8,1.82196]
[1749732124447,0.72861,2744.5,2744.4,0.72862]
[1749732124642,1.8949,2744.8,2744.7,0.72855]
[1749732124845,0.9102,2744.8,2744.7,24.49355]
[1749732125043,4.23710054,2745.0,2744.9,0.7285]
[1749732125345,3.2078,2745.3,2744.9,6.649]
[1749732125548,0.72839,2745.3,2745.1,0.72842]
[1749732125842,0.7284,2745.3,2745.0,26.9718]
[1749732126145,0.7284,2745.3,2745.1,0.72844]
[1749732126340,3.50094235,2745.6,2745.0,3.2078]
[1749732126341,0.72844,2745.1,2745.0,3.2078]
[1749732126542,0.72844,2745.1,2745.0,26.9708]
[1749732126737,0.72844,2745.1,2745.0,23.763]
[1749732127750,0.72858,2744.6,2744.5,3.21327156]
[1749732128045,0.72858,2744.6,2744.5,0.00547156]
[1749732129143,0.72856,2744.7,2744.6,0.72856]
[1749732129343,0.72856,2744.7,2744.6,24.48456]
[1749732129744,0.72856,2744.7,2744.6,23.756]
[1749732129938,3.2078,2745.1,2745.0,0.72847]
[1749732130143,3.2078,2745.4,2745.0,30.399]
[1749732130342,0.72844,2745.1,2745.0,30.399]
[1749732130941,0.72844,2745.1,2744.5,0.00547156]
[1749732130942,0.72858,2744.6,2744.5,0.00547156]
[1749732131550,0.72884,2743.6,2743.5,3.2078]
[1749732131746,3.2078,2743.9,2743.5,3.2078]
[1749732132149,0.72884,2743.6,2743.5,3.2078]
[1749732132751,0.72889,2743.4,2743.3,0.00547156]
[1749732134150,0.72883,2743.7,2743.3,6.65147156]
[1749732134342,0.73427156,2743.8,2743.6,0.72884]
[1749732134541,0.72885,2743.6,2743.5,0.72886]
[1749732135347,0.73427156,2743.8,2743.6,0.72882]
[1749732135654,0.00547156,2743.8,2743.4,25.73618]
[1749732136056,0.72885,2743.6,2743.4,25.0073]
[1749732136452,0.72883,2743.7,2743.5,0.72887]
[1749732136659,0.00547156,2743.8,2743.4,28.2151]
[1749732136855,0.72862,2744.5,2744.3,0.72864]
[1749732137056,0.72862,2744.5,2744.3,24.47664]
[1749732137257,0.72863,2744.4,2744.3,24.47664]
[1749732137460,0.72863,2744.4,2744.3,23.748]
[1749732137660,1.82156,2744.5,2743.9,2.1464]
[1749732137849,3.2078,2744.1,2743.8,30.393]
[1749732138161,0.72876,2743.9,2743.8,30.393]
[1749732138751,1.82191,2743.9,2743.6,6.646]
[1749732138948,0.72881,2743.7,2743.6,6.646]
[1749732141055,0.72884,2743.6,2743.5,0.72887]
[1749732141257,0.72884,2743.6,2743.5,31.11987]
[1749732141759,0.72884,2743.6,2743.5,7.37487]
[1749732141964,0.72884,2743.6,2743.5,31.11987]
[1749732142154,0.72883,2743.7,2743.6,0.72882]
[1749732142359,3.2078,2744.1,2743.5,30.391]
[1749732142664,0.72884,2743.6,2743.5,30.391]
[1749732142964,0.72887,2743.5,2743.4,0.72887]
[1749732143256,0.72889,2743.5,2743.4,31.11888]
[1749732143562,1.82165,2744.3,2743.5,1.82218]
[1749732143759,0.72876,2744.0,2743.9,0.72875]
[1749732144060,0.72862,2744.5,2744.0,1.82184]
[1749732144257,1.82138,2744.7,2744.0,4.4077]
[1749732144463,0.72871,2744.1,2744.0,23.743]
[1749732144856,1.82181,2744.1,2743.6,3.2078]
[1749732145062,0.72885,2743.6,2743.5,23.744]
[1749732145257,5.02952,2744.2,2743.5,23.744]
[1749732145463,0.72881,2743.8,2743.7,0.72881]
[1749732145963,0.72881,2743.8,2743.7,31.11881]
[1749732146166,0.72878,2743.9,2743.8,0.72876]
[1749732146468,0.72879,2743.8,2743.7,31.11879]
[1749732147064,0.72879,2743.8,2743.7,0.72879]
[1749732147361,0.72881,2743.8,2743.7,7.3748]
[1749732147560,0.7287,2744.4,2743.8,1.82197]
[1749732147760,0.7287,2744.2,2744.1,0.72869]
[1749732148059,0.7287,2744.2,2744.1,30.388]
[1749732149166,0.72867,2744.3,2744.1,30.388]
[1749732149465,0.7287,2744.4,2744.3,0.72866]
[1749732149664,1.45733,2744.4,2744.3,0.72866]
[1749732150261,0.72867,2744.3,2744.2,0.72866]
[1749732150461,3.2078,2744.5,2744.1,30.388]
[1749732150666,0.72863,2744.4,2744.3,0.72863]
[1749732150966,3.2078,2745.2,2744.3,3.2078]
[1749732151160,5.02886,2745.2,2744.5,1.8215]
[1749732151366,0.7285,2745.0,2744.9,0.72849]
[1749732151560,0.7285,2745.0,2744.9,24.46649]
[1749732151761,0.7285,2745.0,2744.9,23.738]
[1749732152463,0.72845,2745.1,2745.0,0.72844]
[1749732152659,0.72847,2745.0,2744.9,24.46649]
[1749732153071,0.72847,2745.0,2744.7,0.00547156]
[1749732153072,0.72852,2744.8,2744.7,0.00547156]
[1749732153365,3.93632,2744.8,2744.7,0.00547156]
[1749732153566,8.93632,2744.8,2744.7,0.00547156]
[1749732153763,0.72866,2744.3,2744.2,6.632]
[1749732154166,0.72868,2744.2,2744.1,3.2078]
[1749732154362,0.72873,2744.0,2743.9,29.39776]
[1749732154563,0.72871,2744.2,2744.1,0.72868]
[1749732154974,3.2078,2744.8,2744.2,1.8217]
[1749732155266,0.7285,2744.9,2744.5,0.7286]
[1749732155470,3.2078,2745.2,2744.5,0.7286]
[1749732155667,1.45728,2744.6,2744.5,0.7286]
[1749732155973,0.7287,2744.6,2744.5,31.0946]
[1749732156171,0.7287,2744.6,2744.4,4.1389]
[1749732156368,0.72872,2744.1,2744.0,3.2078]
[1749732156569,0.7287,2744.2,2744.1,0.72869]
[1749732156874,0.72869,2744.2,2744.1,31.09368]
[1749732157173,0.72869,2744.2,2744.1,6.632]
[1749732157361,0.72869,2744.2,2744.1,30.364]
[1749732157564,0.72869,2744.2,2744.1,31.09271]
[1749732157772,3.9365,2744.6,2744.1,31.5853]
[1749732158075,0.72862,2744.5,2744.4,0.7286]
[1749732158266,0.72862,2744.5,2744.4,30.364]
[1749732158570,0.72862,2744.5,2744.4,31.09263]
[1749732158965,0.72862,2744.5,2744.4,30.364]
[1749732159363,0.72862,2744.5,2744.4,31.09263]
[1749732159560,1.1737,2744.9,2744.6,0.72856]
[1749732159771,0.72855,2744.7,2744.6,24.45958]
[1749732159963,3.93635,2744.7,2744.6,23.731]
[1749732160165,0.7286,2744.5,2744.4,6.632]
[1749732160367,0.72868,2744.2,2744.1,7.36069]
[1749732160568,0.72868,2744.2,2744.1,31.09169]
[1749732160771,0.72868,2744.2,2744.1,6.632]
[1749732161169,0.72868,2744.2,2744.1,30.363]
[1749732162168,0.72873,2744.0,2743.9,0.00547156]
[1749732162374,0.72873,2744.0,2743.9,23.73547156]
[1749732163273,0.72873,2744.0,2743.9,24.46423156]
[1749732163674,0.72873,2744.0,2743.9,23.73547156]
[1749732165273,0.72873,2744.0,2743.9,24.46423156]
[1749732166370,0.72872,2744.2,2744.1,0.72868]
[1749732166570,0.72872,2744.2,2744.1,24.45868]
[1749732166773,0.72873,2744.0,2743.9,0.00547156]
[1749732167075,0.72873,2744.0,2743.9,30.36747156]
[1749732167571,0.72873,2744.0,2743.9,0.73423156]
[1749732167775,0.72873,2744.0,2743.9,30.36647156]
[1749732168570,0.72873,2744.0,2743.9,1.56e-06]
[1749732168770,0.729,2743.1,2742.9,23.729]
[1749732169068,0.72905,2742.9,2742.8,0.72904]
[1749732169273,3.2078,2743.4,2742.8,0.72904]
[1749732169274,0.729,2743.1,2743.0,0.72898]
[1749732169577,0.72897,2743.2,2743.1,0.72895]
[1749732169774,0.729,2743.1,2743.0,0.72898]
[1749732169974,0.729,2743.1,2743.0,24.45798]
[1749732170275,0.73438156,2743.4,2743.3,0.72892]
[1749732170476,0.00547156,2743.4,2743.3,27.66572]
[1749732170680,3.2078,2744.0,2743.4,1.82219]
[1749732170977,3.93656,2744.0,2743.9,0.72876]
[1749732171179,3.93653,2744.0,2743.9,23.728]
[1749732172675,3.93653,2744.0,2743.9,30.361]
[1749732175374,3.2078,2744.0,2743.5,1.976]
[1749732175680,1.82204,2743.7,2743.3,3.2078]
[1749732175875,0.72889,2743.5,2743.4,24.45587]
[1749732176080,0.72889,2743.5,2743.4,23.727]
[1749732176282,0.72889,2743.4,2743.3,3.2078]
[1749732176487,0.72895,2743.2,2743.1,6.633]
[1749732176881,0.72895,2743.2,2743.1,30.359]
[1749732177382,0.729,2743.0,2742.9,25.24927156]
[1749732177583,0.729,2743.0,2742.9,49.70430156]
[1749732177779,0.729,2743.0,2742.9,48.97527156]
[1749732178373,0.729,2743.0,2742.9,49.70430156]
[1749732178579,0.72899,2743.1,2743.0,0.72896]
[1749732178886,0.72897,2743.2,2743.1,0.72895]
[1749732179581,0.72893,2743.3,2743.2,0.72891]
[1749732179789,3.2078,2744.0,2743.3,1.82231]
[1749732179980,3.2078,2744.0,2743.4,2.99743]
[1749732180277,3.93656,2744.0,2743.9,0.72876]
[1749732180484,3.93656,2744.0,2743.9,23.726]
[1749732182187,0.72876,2744.0,2743.9,23.726]
[1749732183381,1.82191,2743.9,2743.5,3.2078]
[1749732183587,0.72892,2743.4,2743.3,24.4539]
[1749732184487,0.72885,2743.7,2743.6,0.72882]
[1749732184791,3.2078,2743.7,2743.1,9.8318]
[1749732185091,0.72895,2743.2,2743.1,10.56077]
[1749732185285,6.23088,2743.7,2743.1,33.5548]
[1749732185491,5.02986,2743.7,2743.1,35.37723]
[1749732185788,3.37398,2743.8,2743.3,0.72889]
[1749732185789,0.72893,2743.4,2743.3,0.72889]
[1749732185981,0.72893,2743.4,2743.3,23.723]
[1749732186284,0.72895,2743.2,2743.1,10.56077]
[1749732186490,0.72895,2743.2,2743.1,34.28377]
[1749732186892,0.72894,2743.3,2743.2,0.72892]
[1749732187090,0.72895,2743.2,2743.1,34.28376]
[1749732188191,0.72894,2743.3,2743.1,33.5548]
[1749732188487,0.72894,2743.3,2743.2,0.72891]
[1749732188684,1.552,2743.8,2743.1,33.5548]
[1749732188879,0.72877,2744.0,2743.9,0.72874]
[1749732189084,0.72877,2744.0,2743.9,31.07474]
[1749732189283,0.00547156,2744.2,2743.9,31.07474]
[1749732189284,0.00547156,2744.2,2743.9,32.1679]
[1749732189489,0.00547156,2744.2,2744.1,0.72871]
[1749732189490,0.73416156,2744.2,2744.1,0.72871]
[1749732189689,0.73416156,2744.2,2744.0,1.1962]
[1749732189690,0.72871,2744.1,2744.0,1.1962]
[1749732190092,0.00547156,2744.2,2744.0,1.92493]
[1749732190292,0.73416156,2744.2,2744.1,0.72871]
[1749732190887,0.00547156,2744.2,2744.1,0.72871]
[1749732191394,3.93633,2744.8,2744.3,1.82163]
[1749732191589,3.08738,2745.2,2744.3,1.82163]
[1749732191590,4.4741,2745.2,2744.5,3.2078]
[1749732191892,0.7285,2744.9,2744.8,0.72851]
[1749732192192,0.7285,2744.9,2744.8,23.721]
[1749732192394,0.72855,2744.7,2744.6,0.00547156]
[1749732192589,0.72855,2744.7,2744.6,23.72547156]
[1749732193289,5.02888,2745.2,2744.6,23.72547156]
[1749732193490,0.72854,2744.8,2744.7,0.72854]
[1749732193797,0.72852,2744.8,2744.7,2.74813]
[1749732194495,1.4571,2744.9,2744.8,0.72852]